bitfinex/quotes_ETHUSD_20260202
["timestamp","ask_amount","ask_price","bid_price","bid_amount"]
[1770049040466,11.92415133,2390.4,2389.2,4.18539114]
[1770049040690,11.92415133,2390.4,2388.6,4.18651799]
[1770049040691,14.16136028,2390.3,2389.0,0.877]
[1770049041563,11.92305133,2390.2,2389.0,0.877]
[1770049041739,0.89646338,2390.1,2389.0,0.877]
[1770049041940,11.92305133,2390.0,2389.0,0.877]
[1770049042137,3.11530895,2390.3,2388.6,1.04663819]
[1770049042138,11.92305133,2389.8,2388.6,1.04663819]
[1770049042344,14.10280751,2389.7,2388.5,0.001]
[1770049042535,13.86710709,2389.6,2388.5,0.001]
[1770049042738,12.96925153,2389.6,2388.5,0.001]
[1770049043987,13.94257895,2389.5,2388.5,0.001]
[1770049044274,11.92305133,2389.1,2387.7,3.48929112]
[1770049044481,1.04655056,2388.8,2387.7,4.88530909]
[1770049044687,2.35084188,2389.0,2388.5,0.001]
[1770049044851,0.89990565,2388.9,2388.5,0.001]
[1770049045057,12.82295698,2388.8,2387.7,3.83832023]
[1770049045366,1.04649608,2389.0,2387.7,4.53632277]
[1770049045571,0.89917169,2388.9,2387.7,4.53632277]
[1770049045780,1.04649608,2389.0,2387.7,4.53632277]
[1770049046157,11.92305133,2388.8,2387.7,4.53630952]
[1770049046488,1.39425828,2388.7,2387.7,4.53630952]
[1770049046797,1.04663819,2388.6,2387.7,4.53631985]
[1770049047305,2.44087779,2388.7,2387.7,4.53631985]
[1770049047594,11.92305133,2388.5,2387.5,0.001]
[1770049047755,0.877,2388.6,2387.7,1.0470277]
[1770049048795,1.04668201,2388.5,2387.5,0.001]
[1770049048996,1.9236659,2388.6,2387.5,0.001]
[1770049049199,0.61100453,2388.5,2387.5,0.001]
[1770049049797,12.53405586,2388.5,2387.5,0.001]
[1770049050083,0.61100453,2388.5,2387.5,0.001]
[1770049050454,12.53405586,2388.5,2386.6,0.001]
[1770049050660,11.92305133,2388.1,2386.6,1.04849349]
[1770049050883,11.92305133,2387.5,2386.4,1.04758821]
[1770049051084,1.04707656,2387.6,2386.2,0.001]
[1770049051085,11.92305133,2387.3,2386.2,0.001]
[1770049051262,11.92305133,2387.3,2386.2,1.04865828]
[1770049051578,11.92305133,2387.3,2386.2,0.001]
[1770049051762,1.19230513,2387.2,2386.2,1.04868739]
[1770049051963,13.11535646,2387.2,2386.2,0.001]
[1770049052168,11.92305133,2387.0,2386.0,0.001]
[1770049052891,1.04738363,2386.9,2386.0,0.001]
[1770049053404,12.97043496,2386.9,2385.5,1.04799262]
[1770049053554,11.92305133,2386.7,2385.7,1.047899]
[1770049053755,0.70065989,2386.8,2385.0,0.001]
[1770049053756,12.02545133,2386.6,2385.0,0.001]
[1770049053956,11.92305133,2386.3,2385.3,1.04805507]
[1770049054260,11.92305133,2386.3,2385.2,1.04810674]
[1770049054656,11.92305133,2386.3,2385.0,1.04918729]
[1770049054976,0.70065989,2386.8,2385.2,4.19243652]
[1770049054977,1.04762837,2386.4,2385.2,4.19243652]
[1770049055567,1.04748386,2386.7,2385.2,4.19243652]
[1770049057172,14.79331093,2387.1,2385.3,11.90598987]
[1770049057173,4.94177317,2387.1,2385.3,11.90598987]
[1770049057384,4.94177317,2387.1,2385.7,11.88490261]
[1770049057591,4.94177317,2387.1,2385.8,1.19059899]
[1770049057776,5.98908932,2387.1,2385.8,1.19059899]
[1770049057961,17.91214065,2387.1,2385.3,11.88490261]
[1770049058480,17.91214065,2387.1,2385.4,0.001]
[1770049058786,4.94177317,2387.1,2385.6,11.90598987]
[1770049058987,4.94177317,2387.1,2385.7,12.93281307]
[1770049059168,4.94177317,2387.1,2386.2,0.02108726]
[1770049059369,4.94177317,2387.1,2386.2,11.90598987]
[1770049059568,12.96996196,2388.0,2386.5,0.02108726]
[1770049059795,12.96996196,2388.0,2386.2,11.88490261]
[1770049059997,12.96996196,2388.0,2386.3,0.02108726]
[1770049060174,1.71575667,2387.9,2385.9,11.90598987]
[1770049060380,13.638808,2387.9,2386.2,0.02108726]
[1770049060711,13.638808,2387.9,2386.0,0.02108726]
[1770049060864,13.638808,2387.9,2385.9,1.04782262]
[1770049060865,2.412285,2387.6,2385.9,1.04782262]
[1770049061070,1.43353363,2387.5,2386.0,0.69536673]
[1770049061270,1.43353363,2387.5,2386.0,0.71645399]
[1770049061470,1.04698886,2387.8,2386.0,0.71645399]
[1770049061700,1.04698886,2387.8,2386.3,0.02108726]
[1770049062194,5.90371211,2387.9,2386.3,11.90598987]
[1770049062195,1.71575667,2387.9,2386.3,11.90598987]
[1770049062396,0.32558591,2388.4,2387.2,11.90598987]
[1770049062600,1.04637535,2389.2,2387.5,0.02108726]
[1770049062801,1.71549281,2389.1,2387.5,0.02108726]
[1770049062976,1.04618657,2389.7,2388.1,0.02108726]
[1770049063295,11.92305133,2389.8,2387.8,11.90598987]
[1770049063296,12.96919458,2389.8,2387.8,11.90598987]
[1770049063597,12.96919458,2389.8,2388.1,0.02108726]
[1770049064780,12.96919458,2389.8,2387.8,11.90598987]
[1770049064995,1.0462002,2389.6,2388.0,1.04690117]
[1770049066074,2.7615486,2389.7,2388.0,1.04690117]
[1770049066295,0.0011,2390.1,2388.4,11.90598987]
[1770049066515,12.97014552,2390.1,2388.1,0.02108726]
[1770049066808,11.92305133,2389.9,2388.0,12.93180378]
[1770049067010,1.04611264,2389.8,2388.0,12.93180378]
[1770049067183,1.71536146,2389.7,2388.1,1.83100075]
[1770049067511,1.71536146,2389.7,2388.1,13.73699062]
[1770049068229,1.71536146,2389.7,2388.1,13.71590336]
[1770049068593,12.98912106,2389.6,2388.1,1.83100075]
[1770049068811,12.98912106,2389.0,2387.2,12.43198943]
[1770049069104,12.98912106,2388.1,2386.4,1.04760308]
[1770049069304,10.31540917,2388.5,2386.5,0.52380964]
[1770049069305,12.98912106,2387.8,2386.5,0.52380964]
[1770049069513,12.98912106,2387.8,2386.3,1.04763132]
[1770049070112,16.97029211,2387.7,2386.3,1.04764449]
[1770049070299,2.600967,2387.6,2386.3,1.04764449]
[1770049070481,0.57757149,2388.0,2386.3,1.04764449]
[1770049070682,12.50058111,2388.0,2386.3,1.04764449]
[1770049070898,18.18694711,2387.9,2386.3,1.04764449]
[1770049071104,2.86568357,2387.8,2386.4,0.52383922]
[1770049071304,2.86568357,2387.8,2386.0,1.74311879]
[1770049071305,12.50058111,2387.6,2386.0,1.74311879]
[1770049071491,6.2760483,2387.7,2385.4,0.001]
[1770049071492,12.50058111,2387.2,2385.4,0.001]
[1770049071790,0.2335703,2387.3,2385.4,0.001]
[1770049071791,12.50058111,2386.8,2385.6,1.04792915]
[1770049071992,12.50058111,2386.8,2385.5,1.04797371]
[1770049072407,12.73415141,2386.7,2385.4,0.001]
[1770049072607,12.73415141,2386.4,2385.0,0.001]
[1770049072806,1.27341514,2386.6,2385.0,0.001]
[1770049073115,12.2363737,2387.6,2385.0,0.001]
[1770049073116,12.50058111,2387.4,2385.4,4.19207246]
[1770049073318,13.54777212,2387.4,2385.6,0.02108726]
[1770049073493,1.81869471,2387.8,2386.1,0.02108726]
[1770049073689,13.98440438,2388.4,2386.4,0.02108726]
[1770049073690,13.54733656,2388.4,2386.4,0.02108726]
[1770049073915,13.54731998,2388.4,2386.4,0.02108726]
[1770049074227,12.50058111,2388.9,2386.9,0.02108726]
[1770049074527,12.50058111,2388.9,2387.2,0.02108726]
[1770049074528,1.04650676,2388.9,2387.2,0.02108726]
[1770049074729,1.04633156,2389.3,2387.2,0.02108726]
[1770049074899,0.52316173,2389.2,2387.5,0.02108726]
[1770049075223,1.04641915,2389.1,2387.6,1.04707656]
[1770049075744,12.73415141,2388.9,2386.7,11.99412178]
[1770049075920,0.99558155,2388.8,2387.3,1.04718498]
[1770049076221,12.73415141,2388.9,2387.5,1.04712041]
[1770049076222,12.50058111,2388.9,2387.5,1.04712041]
[1770049077023,1.04655056,2388.8,2386.9,4.18950546]
[1770049077214,1.77333339,2388.7,2387.0,0.52579764]
[1770049078241,1.77333339,2388.7,2387.0,12.51991942]
[1770049078407,1.04655056,2388.8,2387.0,12.51991942]
[1770049078923,12.50058111,2388.3,2387.0,0.52579764]
[1770049079097,1.04681349,2388.2,2386.2,4.19067923]
[1770049080704,12.50058111,2387.8,2386.1,1.04773479]
[1770049080917,12.50058111,2387.4,2386.0,1.04776409]
[1770049081222,12.50058111,2387.4,2385.0,11.99512178]
[1770049081223,1.04720814,2387.3,2385.1,4.19369547]
[1770049081404,0.2335703,2387.7,2385.1,4.19369547]
[1770049081405,1.77366218,2387.2,2385.5,12.01520904]
[1770049081607,1.0469292,2388.0,2386.1,12.01520904]
[1770049081806,13.54751031,2388.0,2385.8,0.02108726]
[1770049082539,13.49671688,2387.9,2385.8,0.02108726]
[1770049082741,12.50058111,2387.5,2385.3,11.99412178]
[1770049083143,1.04707656,2387.6,2386.1,1.04773479]
[1770049083443,0.52353155,2387.5,2386.2,0.5238674]
[1770049083612,1.04703338,2387.7,2386.2,0.5238674]
[1770049084059,0.0011,2387.8,2386.2,0.5238674]
[1770049084343,2.22615737,2388.7,2386.2,0.5238674]
[1770049084344,13.54711203,2388.9,2386.9,0.02108726]
[1770049084649,13.54711203,2388.9,2387.2,0.02108726]
[1770049084821,13.54711203,2388.9,2386.2,2.59978995]
[1770049084822,12.50058111,2388.7,2386.2,12.51798918]
[1770049085031,15.29156173,2388.6,2386.4,0.02108726]
[1770049085334,15.29156173,2388.6,2386.5,1.04755918]
[1770049085335,13.54726312,2388.5,2386.5,1.04755918]
[1770049085534,12.50058111,2388.4,2386.5,1.04755918]
[1770049086747,12.50058111,2388.4,2386.4,4.19023674]
[1770049086748,12.50058111,2387.8,2386.4,1.04760171]
[1770049087045,1.93980711,2387.7,2386.5,0.75235679]
[1770049087248,12.50058111,2388.3,2386.6,1.04751529]
[1770049087249,1.04681349,2388.2,2386.6,1.04751529]
[1770049087448,12.50058111,2388.0,2386.6,1.04751529]
[1770049087745,6.18616742,2388.1,2386.5,4.94241796]
[1770049087746,13.3965048,2387.9,2386.5,1.04755173]
[1770049087946,13.3965048,2387.9,2385.6,0.001]
[1770049087947,12.50058111,2387.3,2385.6,0.001]
[1770049088278,0.89604908,2387.2,2386.3,1.0476181]
[1770049088422,0.1024,2387.6,2386.5,1.04754354]
[1770049088623,0.89627679,2387.5,2386.5,1.0475568]
[1770049088813,1.53058772,2387.6,2386.5,1.0475568]
[1770049089320,13.54770152,2387.5,2386.1,1.04773479]
[1770049089535,0.89630187,2387.4,2386.1,1.04773479]
[1770049089830,15.02880211,2386.8,2385.6,0.001]
[1770049090019,0.89629245,2386.7,2385.6,0.001]
[1770049090343,12.50058111,2386.8,2386.0,1.04776562]
[1770049090554,13.94498145,2387.3,2386.0,1.04776562]
[1770049090755,12.50058111,2386.9,2385.6,0.001]
[1770049091057,12.50058111,2386.7,2385.6,0.001]
[1770049091230,0.89579857,2386.6,2385.6,0.001]
[1770049091428,1.04751529,2386.6,2385.6,0.001]
[1770049091749,12.73415141,2386.5,2385.4,0.001]
[1770049091956,12.73415141,2386.5,2385.0,0.001]
[1770049091957,2.911187,2386.2,2385.0,0.001]
[1770049092249,1.54117681,2386.1,2385.0,0.001]
[1770049093551,2.58894854,2386.1,2385.0,0.001]
[1770049094060,1.04762784,2386.4,2385.0,0.001]
[1770049094565,0.89469305,2386.3,2385.0,0.001]
[1770049094769,13.54820895,2386.4,2385.0,0.001]
[1770049095072,12.50058111,2386.2,2385.0,0.001]
[1770049095564,12.60298111,2386.0,2384.7,7.60509493]
[1770049095763,12.50058111,2385.8,2384.8,1.04830564]
[1770049095952,1.45454358,2385.9,2384.8,1.04829944]
[1770049096152,1.04773479,2386.1,2384.8,1.04829944]
[1770049096536,1.1166728,2386.6,2384.8,1.04829944]
[1770049096735,1.04755918,2386.5,2384.8,1.04829944]
[1770049097160,13.54814029,2386.5,2384.8,1.04829944]
[1770049097359,12.50058111,2386.5,2385.3,0.001]
[1770049097556,1.35481263,2386.4,2385.3,0.001]
[1770049097765,2.40242426,2386.4,2385.3,0.001]
[1770049098342,1.35481263,2386.4,2385.3,0.001]
[1770049098571,1.0475855,2386.5,2385.3,0.001]
[1770049099073,1.84519867,2386.8,2385.3,0.001]
[1770049099448,1.44440034,2387.3,2385.4,0.02108726]
[1770049099651,1.44440034,2387.3,2385.5,13.0421201]
[1770049099859,1.44440034,2387.3,2385.7,11.99412178]
[1770049100038,1.04719197,2387.4,2385.7,11.99412178]
[1770049100240,1.0470327,2387.7,2385.7,11.99412178]
[1770049100441,1.0470327,2387.7,2385.8,0.02108726]
[1770049101146,1.0470327,2387.7,2385.8,12.93936908]
[1770049101676,1.04793891,2388.2,2386.3,12.93936908]
[1770049101860,1.53079344,2388.1,2386.4,1.29604563]
[1770049102061,0.0011,2388.2,2386.7,12.96045634]
[1770049102540,0.0011,2388.2,2387.0,12.96045634]
[1770049102744,0.0011,2388.2,2387.0,12.93936908]
[1770049102996,0.0011,2388.2,2387.1,0.02108726]
[1770049103141,0.003,2388.9,2387.8,0.02108726]
[1770049103345,0.003,2388.9,2387.7,12.93936908]
[1770049103575,0.003,2388.9,2387.9,1.04694501]
[1770049104453,0.003,2388.9,2387.9,1.06803227]
[1770049104901,0.0011,2389.0,2387.9,14.00740135]
[1770049105200,0.0011,2389.0,2387.9,13.98631409]
[1770049105692,0.0011,2389.0,2388.1,1.04685733]
[1770049106000,0.0011,2389.0,2388.2,0.52553739]
[1770049107067,0.0011,2389.0,2388.0,1.04687097]
[1770049107699,0.0011,2389.0,2387.6,4.18760469]
[1770049107872,0.0011,2389.0,2387.7,0.02108726]
[1770049108068,0.0011,2389.0,2388.0,12.96045634]
[1770049108272,0.0011,2389.4,2388.3,0.02108726]
[1770049108504,0.0011,2389.4,2388.1,0.02108726]
[1770049108701,0.0011,2389.4,2388.1,1.31713289]
[1770049109076,0.0011,2389.4,2388.1,1.29604563]
[1770049109692,0.0011,2389.4,2388.2,1.04681349]
[1770049111181,12.42713801,2389.4,2388.1,1.04682602]
[1770049111385,1.2427138,2389.3,2388.1,1.04682602]
[1770049111582,12.42603801,2389.1,2387.6,1.04704232]
[1770049111791,13.47250096,2389.0,2387.3,4.18877263]
[1770049112507,1.04644398,2389.1,2387.4,12.93936908]
[1770049112806,1.04748552,2389.2,2387.4,12.96045634]
[1770049113006,0.64755328,2389.1,2387.5,1.7149229]
[1770049113402,0.64755328,2389.1,2387.3,4.18877263]
[1770049113602,0.64755328,2389.1,2387.7,0.02108726]
[1770049113802,1.04646295,2389.0,2387.8,1.04698886]
[1770049114000,0.64755328,2389.1,2388.0,0.02108726]
[1770049114199,0.0011,2389.2,2388.0,0.02108726]
[1770049114405,0.0011,2389.2,2388.0,14.44900086]
[1770049114582,1.0474859,2389.2,2387.8,1.04698886]
[1770049115109,13.47352391,2389.2,2387.8,1.04698886]
[1770049115328,13.47352391,2389.2,2387.4,4.18795544]
[1770049115329,12.42603801,2388.8,2387.4,1.04714058]
[1770049115609,0.1024,2388.5,2387.0,4.18918973]
[1770049115784,1.04676966,2388.3,2386.6,1.04751529]
[1770049115978,1.92476966,2388.3,2386.6,1.04751529]
[1770049116913,13.47280767,2388.3,2386.6,1.04751529]
[1770049117213,12.42603801,2388.1,2386.6,1.04751529]
[1770049117720,12.42603801,2387.8,2386.5,1.04755874]
[1770049117889,0.878,2388.2,2385.9,13.81736908]
[1770049117890,1.04688512,2388.1,2386.6,0.878]
[1770049119516,13.47292313,2388.1,2386.6,0.878]
[1770049119717,16.80960301,2388.0,2386.6,0.878]
[1770049119915,13.47298302,2387.9,2386.5,1.04753745]
[1770049120085,12.42603801,2387.8,2386.6,1.04751502]
[1770049120280,1.3472983,2387.7,2385.9,0.878]
[1770049120504,1.3472983,2387.7,2385.4,4.19203782]
[1770049120505,12.42603801,2387.5,2385.4,4.19216873]
[1770049120686,12.42603801,2387.5,2386.3,1.04761959]
[1770049120687,0.878,2387.4,2386.3,1.04761959]
[1770049120887,0.878,2387.4,2386.4,1.0476]
[1770049121088,15.40231401,2387.3,2385.9,1.04779994]
[1770049121315,14.05406941,2387.2,2386.0,1.04774867]
[1770049121517,14.05406941,2387.2,2385.7,1.04787699]
[1770049121683,12.42603801,2387.0,2385.9,1.04781935]
[1770049121890,1.04738363,2386.9,2385.4,4.19213623]
[1770049122304,1.92538363,2386.9,2385.4,4.19213623]
[1770049122507,1.85409562,2386.8,2385.5,0.61191785]
[1770049123616,14.28013363,2386.8,2385.5,0.61191785]
[1770049123836,14.28013363,2386.8,2385.3,0.001]
[1770049123997,12.65960831,2386.5,2385.3,0.001]
[1770049124190,1.0474714,2386.7,2385.3,0.001]
[1770049124727,13.47350941,2386.7,2386.5,0.001]
[1770049125038,12.42603801,2386.5,2385.3,0.001]
[1770049125843,1.1166728,2387.3,2385.3,12.94036908]
[1770049126034,1.04722824,2387.3,2385.4,13.98741133]
[1770049126321,0.878,2387.5,2386.1,0.02108726]
[1770049126717,12.42603801,2388.4,2386.1,13.83845634]
[1770049126919,1.77295352,2388.3,2386.8,0.02108726]
[1770049127324,0.878,2388.5,2386.4,12.93936908]
[1770049127325,13.47276645,2388.4,2386.4,12.93936908]
[1770049127733,12.42603801,2388.4,2386.5,12.96045634]
[1770049128040,0.0011,2388.8,2387.1,0.02108726]
[1770049128333,1.04767963,2388.8,2387.1,0.878]
[1770049128498,0.52338141,2388.7,2387.1,0.878]
[1770049128926,0.1024,2388.6,2387.1,0.878]
[1770049129828,0.2335703,2388.2,2386.6,1.04751529]
[1770049130030,1.92485733,2388.1,2386.4,4.19006117]
[1770049130400,0.878,2388.1,2386.4,4.21114843]
[1770049130599,0.878,2388.1,2386.5,0.84012096]
[1770049131309,12.86078071,2388.1,2386.5,0.84012096]
[1770049131716,0.2335703,2387.8,2386.5,0.84012096]
[1770049131915,0.2335703,2387.8,2386.3,4.19006117]
[1770049132110,1.04698886,2387.8,2386.3,4.19006117]
[1770049132320,12.86078071,2388.1,2386.3,4.19006117]
[1770049132509,0.1024,2388.0,2386.3,16.40328635]
[1770049132845,0.74722797,2388.0,2386.4,1.88558662]
[1770049134003,1.79416928,2388.0,2386.5,1.04755918]
[1770049134307,0.64482797,2388.0,2386.7,0.02108726]
[1770049134643,1.04691657,2388.0,2386.5,1.04755918]
[1770049135208,0.878,2388.1,2386.5,1.04755918]
[1770049135429,0.878,2388.1,2386.6,0.02108726]
[1770049135728,1.92486196,2388.1,2386.6,0.02108726]
[1770049135930,1.92486196,2388.1,2386.5,13.26078436]
[1770049136236,0.61121327,2388.0,2386.7,1.0474714]
[1770049136532,0.878,2388.1,2386.7,1.0474714]
[1770049136912,17.80926003,2388.7,2387.1,0.02108726]
[1770049136913,12.50616212,2388.7,2387.1,0.02108726]
[1770049137126,1.58655373,2388.6,2386.8,12.23431244]
[1770049137323,0.53991535,2388.6,2387.1,0.02108726]
[1770049137711,1.58657528,2388.6,2386.8,12.21322518]
[1770049137903,0.57731281,2388.5,2386.9,1.32606966]
[1770049138132,0.57731281,2388.5,2387.0,1.04733975]
[1770049138133,1.04676966,2388.3,2387.0,1.04733975]
[1770049138541,11.98388071,2387.9,2386.7,1.04846918]
[1770049138718,11.98388071,2387.9,2386.9,1.0473795]
[1770049139021,11.98388071,2387.9,2386.8,1.04742711]
[1770049139222,1.19838807,2387.8,2386.7,1.04844722]
[1770049139750,0.878,2387.7,2386.9,1.04738262]
[1770049140125,1.19838807,2387.8,2386.7,0.001]
[1770049140327,0.0011,2387.9,2386.7,0.001]
[1770049140328,1.04804758,2387.9,2386.7,0.001]
[1770049140647,0.0011,2387.9,2386.7,0.879]
[1770049142228,1.04804898,2387.9,2386.8,1.04742751]
[1770049142747,1.04804898,2387.9,2386.7,1.92644234]
[1770049143047,0.89765209,2387.8,2386.7,1.92644234]
[1770049143247,0.0011,2387.9,2386.8,0.61164007]
[1770049144154,0.0011,2387.9,2386.9,1.04738363]
[1770049147660,12.88209125,2387.8,2385.2,12.21422518]
[1770049147961,1.12023927,2387.0,2386.3,4.19056024]
[1770049148256,1.12023927,2387.0,2385.4,12.21322518]
[1770049148257,1.94698165,2386.9,2385.6,1.92591046]
[1770049148454,0.26138916,2387.0,2385.7,4.19163179]
[1770049148754,0.89955301,2386.9,2385.7,4.19163179]
[1770049148929,1.30873906,2387.0,2385.7,4.19163179]
[1770049149263,0.89952778,2386.9,2385.8,0.61175423]
[1770049149460,0.89952778,2386.9,2385.6,1.04791046]
[1770049149461,0.1024,2386.8,2385.6,1.04793179]
[1770049149756,0.89948238,2386.8,2385.6,1.04793179]
[1770049149960,1.30873529,2387.0,2385.6,1.04793179]
[1770049150125,1.04719785,2387.4,2385.8,0.02108726]
[1770049150325,0.89925508,2387.3,2385.9,0.878]
[1770049150527,1.04719785,2387.4,2385.9,0.878]
[1770049150743,1.12023927,2387.6,2385.9,0.878]
[1770049150744,0.89925657,2387.3,2385.9,0.878]
[1770049150953,1.04710289,2387.6,2386.0,0.02108726]
[1770049151153,1.30849205,2387.6,2385.9,0.878]
[1770049151355,1.30849205,2387.6,2386.0,0.02108726]
[1770049151557,0.8992853,2387.5,2385.9,0.878]
[1770049151758,1.30849205,2387.6,2386.0,0.02108726]
[1770049152069,1.44895155,2387.5,2386.0,0.02108726]
[1770049152262,0.54966649,2387.5,2386.0,0.02108726]
[1770049152462,0.54966649,2387.5,2386.1,1.04773479]
[1770049153150,0.0011,2387.7,2386.1,1.04773479]
[1770049153356,0.0011,2387.7,2386.3,12.23431244]
[1770049153657,0.0011,2387.7,2386.3,12.21322518]
[1770049154374,0.0011,2387.7,2386.4,1.04760308]
[1770049154561,0.0011,2387.7,2386.4,13.28191552]
[1770049154900,0.0011,2387.9,2386.8,12.21322518]
[1770049155191,0.0011,2387.9,2386.5,1.74723279]
[1770049155192,0.0011,2387.9,2386.9,0.878]
[1770049155545,0.90159524,2387.8,2386.9,0.878]
[1770049155780,0.90159524,2387.7,2386.9,0.878]
[1770049155943,0.90159524,2387.6,2386.9,0.878]
[1770049156147,1.12133927,2387.9,2386.9,0.878]
[1770049156345,0.90201394,2387.8,2387.0,1.04733975]
[1770049156653,0.32718547,2388.5,2387.1,12.23431244]
[1770049157080,0.32718547,2388.5,2387.1,12.21322518]
[1770049158065,0.32718547,2388.5,2387.2,0.878]
[1770049158467,0.32718547,2388.5,2387.3,1.04720814]
[1770049158665,0.32718547,2388.5,2387.4,0.61140407]
[1770049158866,0.27718547,2388.5,2387.4,12.82462925]
[1770049159173,1.49365236,2389.1,2387.4,12.82462925]
[1770049159174,0.0011,2389.2,2387.6,12.21322518]
[1770049159489,0.0011,2389.2,2387.4,0.61140407]
[1770049159490,1.04748791,2389.2,2387.4,0.61140407]
[1770049159981,1.047487,2389.2,2387.4,13.20616426]
[1770049160277,0.0011,2389.2,2387.5,1.42533724]
[1770049160595,0.0011,2389.2,2387.6,13.64183675]
[1770049163296,0.0011,2389.4,2387.6,13.64183675]
[1770049163297,0.0011,2389.4,2388.3,12.59476019]
[1770049163477,0.0011,2389.6,2388.5,12.59476019]
[1770049163781,0.0011,2389.6,2388.6,1.25947602]
[1770049164578,0.0011,2389.6,2388.7,1.04659438]
[1770049166778,0.0011,2389.4,2388.7,1.04659438]
[1770049167081,0.0011,2389.4,2388.6,1.04662706]
[1770049168662,0.0011,2389.4,2388.5,4.18655279]
[1770049169392,0.0011,2389.4,2388.5,4.64440949]
[1770049171199,0.0011,2389.4,2388.5,4.18655279]
[1770049171765,0.0011,2389.6,2388.5,16.78131298]
[1770049173284,0.0011,2389.8,2388.7,12.61584745]
[1770049173494,0.0011,2389.8,2388.7,12.59476019]
[1770049174561,0.0011,2389.8,2388.8,1.04655056]
[1770049174760,0.0011,2389.8,2388.9,1.7827513]
[1770049175090,0.0011,2389.8,2389.0,0.878]
[1770049175667,1.22729523,2390.6,2389.0,13.47276019]
[1770049175867,14.18682074,2390.6,2389.0,0.878]
[1770049176791,14.18682074,2390.6,2389.1,1.04641915]
[1770049176965,1.83727585,2390.5,2389.2,0.61100958]
[1770049178070,1.22729523,2390.6,2389.2,0.61100958]
[1770049178271,1.22728627,2390.6,2389.2,0.61100958]
[1770049178894,14.18681178,2390.6,2389.3,1.04633156]
[1770049179192,12.95952551,2390.5,2389.2,1.04634218]
[1770049179694,12.95952551,2390.3,2389.2,1.04634218]
[1770049179901,12.95952551,2390.1,2389.2,1.04634218]
[1770049180193,12.95952551,2390.1,2389.0,4.18550142]
[1770049180194,12.95952551,2390.1,2388.9,1.04648447]
[1770049180393,12.95952551,2390.1,2388.3,4.18692056]
[1770049180719,12.95952551,2389.7,2388.1,0.878]
[1770049181017,12.95952551,2389.3,2388.1,1.04682463]
[1770049181317,12.95952551,2388.9,2387.8,0.001]
[1770049181466,12.95952551,2388.7,2387.5,0.001]
[1770049181671,12.95952551,2388.3,2386.9,4.1903603]
[1770049181890,13.83652551,2388.3,2387.0,1.04733634]
[1770049182085,13.83652551,2388.3,2387.1,1.04728585]
[1770049182287,13.83652551,2388.3,2387.0,1.04731958]
[1770049182487,12.95952551,2388.1,2387.0,1.57110429]
[1770049183001,1.04690117,2388.0,2387.1,1.04729588]
[1770049183175,14.00642668,2388.0,2387.0,0.52378471]
[1770049183376,14.00642668,2388.0,2387.0,1.0473351]
[1770049184502,14.00642668,2388.0,2387.0,1.0473345]
[1770049184875,4.18752513,2388.1,2386.9,0.001]
[1770049185504,1.12023927,2388.5,2386.9,0.001]
[1770049185801,5.89095291,2389.3,2387.4,12.59476019]
[1770049186011,5.89095291,2389.3,2387.5,2.13958474]
[1770049186012,12.95952551,2389.1,2387.5,2.13958474]
[1770049186189,12.95952551,2388.9,2387.5,0.878]
[1770049186907,1.04655056,2388.8,2387.6,1.04707656]
[1770049187805,14.00607607,2388.8,2387.6,1.04707656]
[1770049188583,13.31775088,2388.7,2387.5,1.92508643]
[1770049188806,14.19578805,2388.6,2387.5,1.04711431]
[1770049189036,12.42094879,2388.4,2387.1,0.878]
[1770049189307,13.3178242,2388.3,2387.1,1.04729117]
[1770049189615,13.29894879,2388.3,2387.1,1.04729117]
[1770049190976,1.04681349,2388.2,2386.9,0.001]
[1770049191497,13.4677465,2388.3,2386.9,0.001]
[1770049191684,1.41957881,2388.5,2387.0,0.02108726]
[1770049191887,1.04662478,2388.7,2387.1,0.878]
[1770049192188,1.04662478,2388.7,2387.1,0.879]
[1770049192712,13.70819153,2388.7,2387.1,0.879]
[1770049192878,13.70819153,2388.7,2387.1,0.001]
[1770049193074,13.70819153,2388.7,2387.1,0.879]
[1770049193302,1.04668201,2388.5,2387.2,1.04725201]
[1770049194199,12.66156675,2388.3,2387.2,1.04725201]
[1770049194400,12.66156675,2388.3,2387.1,1.04828569]
[1770049194710,12.66156675,2388.3,2387.1,0.001]
[1770049194917,12.66156675,2388.3,2387.1,1.04828348]
[1770049195080,12.66156675,2388.1,2387.1,0.001]
[1770049195285,13.70846792,2388.0,2387.1,0.001]
[1770049195485,0.878,2387.9,2387.1,0.001]
[1770049195924,13.53956675,2387.9,2387.1,0.001]
[1770049197209,0.878,2387.9,2387.1,0.001]
[1770049197418,1.04698886,2387.8,2387.1,0.001]
[1770049197596,1.48925059,2387.9,2387.1,0.001]
[1770049197914,0.878,2387.9,2387.1,0.001]
[1770049198317,1.92494919,2387.9,2387.1,0.001]
[1770049199394,14.58651594,2387.9,2387.1,0.001]
[1770049200493,12.66156675,2387.7,2386.9,0.001]
[1770049200706,1.37740036,2387.6,2386.9,0.001]
[1770049200889,1.92494919,2387.9,2386.9,0.001]
[1770049201613,12.66156675,2387.8,2386.9,0.001]
[1770049201815,12.66156675,2387.6,2386.6,0.001]
[1770049202628,0.878,2387.5,2386.6,0.001]
[1770049202829,13.53956675,2387.5,2386.6,0.001]
[1770049203016,14.01552343,2387.4,2386.6,0.001]
[1770049203211,14.01552343,2387.4,2385.9,4.19221407]
[1770049203212,12.66156675,2387.0,2385.9,1.04880403]
[1770049203407,0.99687354,2387.3,2385.9,0.001]
[1770049203408,0.878,2386.9,2385.9,0.001]
[1770049203930,1.04738241,2387.0,2385.9,0.001]
[1770049204227,1.04738241,2387.0,2386.8,0.001]
[1770049204529,0.61146747,2387.0,2385.9,0.001]
[1770049204727,13.27303422,2387.0,2385.9,0.001]
[1770049205232,0.878,2387.2,2385.9,0.001]
[1770049205532,13.70866438,2387.6,2386.0,1.0477787]
[1770049205930,12.66156675,2387.4,2386.0,1.0477787]
[1770049207331,12.66156675,2387.0,2386.0,1.0477787]
[1770049207521,0.878,2386.9,2385.9,0.001]
[1770049207722,0.878,2386.9,2385.9,0.61303327]
[1770049208034,1.04733587,2387.1,2385.9,0.61303327]
[1770049208419,1.92528548,2387.2,2385.9,0.61303327]
[1770049208866,2.16482641,2387.8,2385.9,12.65608647]
[1770049209052,1.04702755,2387.8,2385.9,12.65608647]
[1770049209337,1.04702755,2387.8,2386.0,1.37260403]
[1770049209338,14.17108919,2387.7,2386.0,1.37260403]
[1770049209504,14.60687848,2387.6,2386.1,1.04773479]
[1770049209707,12.66156675,2387.4,2386.1,1.04773479]
[1770049209911,1.77644463,2387.3,2386.1,1.04773479]